bitfinex/quotes_SOLUSD_20240818
["timestamp","ask_amount","ask_price","bid_price","bid_amount"]
[1723993907516,7.88152387,145.43,145.37,8.94]
[1723993907698,52.75603387,145.42,145.37,8.94]
[1723993907888,7.75603387,145.41,145.37,8.94]
[1723993908298,0.12549,145.45,145.39,8.94]
[1723993908492,7.75663387,145.44,145.39,8.94]
[1723993908699,7.75663387,145.43,145.39,8.94]
[1723993908899,7.75663387,145.42,145.39,8.94]
[1723993909119,0.12549,145.45,145.39,8.94]
[1723993909410,7.75655491,145.44,145.41,8.94]
[1723993909586,50.00130639,145.51,145.41,8.94]
[1723993909784,14.94340505,145.5,145.41,8.94]
[1723993910112,7.75741622,145.49,145.41,8.94]
[1723993910293,7.75741622,145.48,145.42,1.37516923]
[1723993910486,7.75823379,145.47,145.41,24.8754]
[1723993910691,7.75823379,145.46,145.41,24.8754]
[1723993910898,7.75823379,145.45,145.41,24.8754]
[1723993911236,0.12549,145.49,145.42,1.37518076]
[1723993911514,7.75815454,145.48,145.42,1.37518076]
[1723993911690,53.00913454,145.47,145.41,24.8754]
[1723993911893,7.75815454,145.46,145.41,24.8754]
[1723993912090,52.75815454,145.45,145.41,24.8754]
[1723993912291,45.12549,145.47,145.41,24.8754]
[1723993912500,7.75808859,145.46,145.41,24.8754]
[1723993912715,52.75808859,145.45,145.41,24.8754]
[1723993912893,45.0,145.45,145.41,24.8754]
[1723993916111,0.12549,145.49,145.41,24.8754]
[1723993916312,7.75399574,145.48,145.41,24.8754]
[1723993916608,52.75399574,145.47,145.41,24.8754]
[1723993916814,7.75399574,145.46,145.41,24.8754]
[1723993917043,0.25098,145.49,145.41,24.8754]
[1723993917223,7.87965748,145.48,145.41,24.8754]
[1723993917519,54.41529215,145.47,145.41,24.8754]
[1723993917707,7.75416748,145.46,145.41,24.8754]
[1723993918035,0.12549,145.48,145.41,24.8754]
[1723993918191,7.7541533,145.47,145.41,24.8754]
[1723993918548,7.7541533,145.46,145.41,24.8754]
[1723993918821,0.25098,145.48,145.41,24.8754]
[1723993919023,7.7540938,145.47,145.41,24.8754]
[1723993919319,7.7540938,145.46,145.41,24.8754]
[1723993919502,45.0,145.45,145.41,24.8754]
[1723993919727,1.66112467,145.46,145.41,24.8754]
[1723993920401,0.12549,145.47,145.41,24.8754]
[1723993920604,7.75401652,145.46,145.41,24.8754]
[1723993920917,45.0,145.45,145.41,24.8754]
[1723993926116,0.25098,145.48,145.43,8.94]
[1723993926426,7.75486303,145.47,145.43,10.31498874]
[1723993926603,7.75486303,145.46,145.43,8.94]
[1723993926926,22.3276,145.52,145.45,8.94]
[1723993927219,7.75568101,145.51,145.45,8.94]
[1723993927418,7.75568101,145.5,145.45,8.94]
[1723993927628,7.75568101,145.49,145.45,8.94]
[1723993927820,7.75568101,145.48,145.45,8.94]
[1723993928020,0.12549,145.51,145.45,8.94]
[1723993928220,7.75616577,145.5,145.45,8.94]
[1723993928415,52.88165577,145.49,145.45,8.94]
[1723993928613,7.75616577,145.48,145.45,8.94]
[1723993928926,45.37647,145.51,145.43,8.94]
[1723993929117,7.88147793,145.5,145.43,8.94]
[1723993929307,52.75598793,145.49,145.43,8.94]
[1723993929634,7.75598793,145.48,145.43,8.94]
[1723993929801,45.0,145.47,145.43,8.94]
[1723993930001,0.12549,145.5,145.43,8.94]
[1723993930231,7.75860327,145.49,145.43,8.94]
[1723993930406,52.7586036,145.48,145.43,8.94]
[1723993930608,0.37647,145.5,145.43,8.94]
[1723993930826,7.75917219,145.49,145.44,1.37492259]
[1723993931024,0.37647,145.5,145.43,8.94]
[1723993931025,45.0,145.48,145.43,8.94]
[1723993931236,0.37647,145.5,145.43,8.94]
[1723993931435,7.75954078,145.49,145.43,8.94]
[1723993931606,52.75954078,145.48,145.43,8.94]
[1723993931817,0.37647,145.5,145.43,8.94]
[1723993932040,7.75938434,145.49,145.43,8.94]
[1723993932311,52.75938434,145.48,145.43,8.94]
[1723993932515,45.0,145.48,145.43,8.94]
[1723993934817,45.0,145.48,145.42,6.5711]
[1723993935006,7.75892519,145.47,145.42,6.5711]
[1723993935209,52.75892519,145.46,145.42,6.5711]
[1723993935516,45.0,145.46,145.42,6.5711]
[1723993936322,0.37647,145.5,145.43,8.94]
[1723993936513,7.75459387,145.49,145.43,8.94]
[1723993936841,52.75459387,145.48,145.43,8.94]
[1723993937018,7.75459387,145.47,145.43,8.94]
[1723993938634,45.0,145.48,145.43,8.94]
[1723993938842,7.75405687,145.47,145.43,8.94]
[1723993939013,45.0,145.48,145.43,8.94]
[1723993939339,7.75397751,145.47,145.43,8.94]
[1723993939513,45.0,145.48,145.43,8.94]
[1723993939714,7.75260282,145.47,145.43,8.94]
[1723993940023,45.0,145.48,145.43,8.94]
[1723993940234,7.75287175,145.47,145.43,8.94]
[1723993940530,45.0,145.48,145.43,8.94]
[1723993940727,7.75292373,145.47,145.43,8.94]
[1723993940915,45.0,145.48,145.43,8.94]
[1723993941118,7.75265707,145.47,145.43,8.94]
[1723993941316,45.0,145.48,145.43,8.94]
[1723993941537,7.75263485,145.47,145.43,8.94]
[1723993941719,45.0,145.48,145.43,8.94]
[1723993941929,7.75252688,145.47,145.43,8.94]
[1723993942234,45.0,145.48,145.43,8.94]
[1723993942538,7.75261199,145.47,145.43,8.94]
[1723993942738,45.25098,145.46,145.41,15.9354]
[1723993942909,0.12549,145.45,145.41,15.9354]
[1723993943235,0.25098,145.46,145.41,24.8754]
[1723993943539,7.7443894,145.45,145.41,24.8754]
[1723993943727,45.0,145.44,145.41,24.8754]
[1723993944739,45.0,145.44,145.41,15.9354]
[1723993945237,45.0,145.44,145.39,8.94]
[1723993945446,9.5339666,145.43,145.38,6.2448]
[1723993945745,9.5339666,145.43,145.37,23.9929]
[1723993945746,54.40802886,145.42,145.37,23.9929]
[1723993945939,46.66112467,145.42,145.37,23.9929]
[1723993946114,30.0,145.41,145.37,23.9929]
[1723993946320,45.0,145.4,145.37,15.0529]
[1723993946749,45.0,145.4,145.37,23.9929]
[1723993947248,30.0,145.38,145.37,23.9929]
[1723993947414,30.0,145.38,145.37,43.9929]
[1723993947811,30.0,145.38,145.37,23.9929]
[1723993948716,0.12549,145.43,145.37,23.9929]
[1723993948939,0.37647,145.43,145.37,23.9929]
[1723993949429,3.92053756,145.43,145.37,23.9929]
[1723993949630,45.0,145.42,145.37,23.9929]
[1723993955221,7.74326963,145.41,145.37,23.9929]
[1723993955424,45.0,145.42,145.37,23.9929]
[1723993956521,0.12549,145.46,145.39,8.94]
[1723993956725,7.74382129,145.45,145.39,8.94]
[1723993957052,52.74382129,145.44,145.39,8.94]
[1723993957242,45.0,145.43,145.39,8.94]
[1723993957423,45.12549,145.46,145.39,8.94]
[1723993957616,7.74493442,145.45,145.42,15.9997]
[1723993957846,0.8729046,145.53,145.45,8.94]
[1723993958025,7.74816009,145.52,145.45,8.94]
[1723993958226,0.8729046,145.53,145.45,8.94]
[1723993958227,7.74816009,145.51,145.45,8.94]
[1723993958441,7.74816009,145.5,145.45,8.94]
[1723993958636,7.74816009,145.49,145.45,8.94]
[1723993958942,0.8729046,145.53,145.45,8.94]
[1723993959132,7.74768711,145.52,145.45,8.94]
[1723993959439,7.74768711,145.51,145.45,8.94]
[1723993959652,7.74768711,145.5,145.45,8.94]
[1723993959833,7.74768711,145.49,145.45,8.94]
[1723993960027,0.8729046,145.53,145.45,8.94]
[1723993960234,7.74772687,145.52,145.45,8.94]
[1723993960438,7.74772687,145.51,145.45,8.94]
[1723993960621,0.8729046,145.53,145.45,8.94]
[1723993960622,7.74772687,145.5,145.45,8.94]
[1723993960823,7.74772687,145.49,145.45,8.94]
[1723993961048,0.8729046,145.53,145.45,8.94]
[1723993961350,7.74766749,145.52,145.45,8.94]
[1723993961549,7.74766749,145.51,145.45,8.94]
[1723993961748,7.74766749,145.5,145.45,8.94]
[1723993961948,7.74766749,145.49,145.45,8.94]
[1723993962123,0.8729046,145.53,145.45,8.94]
[1723993962322,0.12549,145.51,145.45,8.94]
[1723993962556,7.74740895,145.5,145.45,8.94]
[1723993962724,45.0,145.49,145.45,8.94]
[1723993963531,0.25098,145.52,145.45,8.94]
[1723993963728,7.87592702,145.51,145.45,8.94]
[1723993964017,52.75043702,145.5,145.45,8.94]
[1723993964236,0.12549,145.51,145.45,8.94]
[1723993964439,7.75049618,145.5,145.45,8.94]
[1723993964623,0.12549,145.51,145.45,8.94]
[1723993964836,7.75087132,145.5,145.46,1.37470575]
[1723993965038,0.12549,145.51,145.46,1.37470575]
[1723993965236,7.75396665,145.5,145.46,1.37470575]
[1723993965435,0.12549,145.52,145.47,8.94]
[1723993965749,7.75697842,145.51,145.47,8.94]
[1723993966049,7.75697842,145.5,145.47,8.94]
[1723993966240,45.8729046,145.53,145.47,8.94]
[1723993966436,7.75821827,145.52,145.47,8.94]
[1723993966754,52.75821827,145.51,145.47,8.94]
[1723993966931,45.0,145.51,145.47,8.94]
[1723993969743,45.0,145.51,145.45,8.94]
[1723993969957,1.66112467,145.5,145.44,6.0157]
[1723993970128,1.66112467,145.5,145.45,20.0]
[1723993970452,45.0,145.51,145.45,20.0]
[1723993970647,0.12549,145.5,145.45,20.0]
[1723993971149,0.12549,145.5,145.45,28.94]
[1723993972742,45.0,145.51,145.47,8.94]
[1723993979248,1.66112467,145.5,145.45,20.0]
[1723993979461,0.12549,145.49,145.45,20.0]
[1723993979648,0.25098,145.5,145.45,20.0]
[1723993980736,45.0,145.51,145.46,10.31475839]
[1723993980932,45.0,145.51,145.46,8.94]
[1723993984149,45.0,145.51,145.45,20.0]
[1723993984350,45.0,145.51,145.44,6.0157]
[1723993984351,2.16308467,145.5,145.44,6.0157]
[1723993984558,8.25266128,145.5,145.44,6.0157]
[1723993984871,45.0,145.49,145.44,6.0157]
[1723993986777,1.66112467,145.48,145.42,15.9997]
[1723993986965,0.12549,145.47,145.42,15.9997]
[1723993987462,0.12549,145.48,145.42,15.9997]
[1723993987663,0.37647,145.48,145.42,15.9997]
[1723993989874,0.25098,145.48,145.42,15.9997]
[1723993990056,45.0,145.49,145.37,0.12549]
[1723993990250,2.09527215,145.48,145.42,8.94]
[1723993990456,1.84429215,145.48,145.42,8.94]
[1723993990954,0.12549,145.48,145.42,8.94]
[1723993991154,0.12549,145.49,145.42,8.94]
[1723993991355,0.12549,145.48,145.42,8.94]
[1723993994184,0.12549,145.48,145.4,8.94]
[1723993994478,0.12549,145.46,145.38,8.94]
[1723993994674,7.74685872,145.45,145.38,8.94]
[1723993994859,1.84482451,145.44,145.38,8.94]
[1723993995580,0.12549,145.44,145.38,8.94]
[1723993995785,0.37647,145.45,145.38,8.94]
[1723993996286,7.7455975,145.44,145.38,8.94]
[1723993996581,45.0,145.43,145.38,8.94]
[1723993996995,46.71926902,145.44,145.38,8.94]
[1723993997158,46.71926912,145.44,145.38,8.94]
[1723993998275,45.0,145.44,145.38,8.94]
[1723993999983,0.12549,145.43,145.38,8.94]
[1723994002093,1.97037317,145.43,145.36,8.94]
[1723994003873,1.97037317,145.43,145.31,197.49017782]
[1723994003874,0.12549,145.41,145.31,213.05837782]
[1723994004186,0.12549,145.39,145.32,8.94]
[1723994004384,0.50196,145.39,145.32,8.94]
[1723994005273,0.50196,145.39,145.33,1.09161277]
[1723994005584,0.50196,145.39,145.33,8.94]
[1723994005786,2.22189484,145.39,145.33,8.94]
[1723994005967,0.50196,145.39,145.33,8.94]
[1723994006285,30.0,145.37,145.33,8.94]
[1723994006482,45.0,145.36,145.33,8.94]
[1723994007087,30.0,145.37,145.33,8.94]
[1723994007989,0.12549,145.41,145.33,8.94]
[1723994008196,45.50196,145.41,145.33,8.94]
[1723994009888,45.50196,145.41,145.31,15.5682]
[1723994009889,45.50196,145.41,145.35,8.94]
[1723994012899,45.50196,145.41,145.31,15.5682]
[1723994013097,45.50196,145.41,145.33,8.94]
[1723994013603,0.12549,145.39,145.33,8.94]
[1723994013799,0.50196,145.39,145.33,8.94]
[1723994013988,45.0,145.41,145.33,8.94]
[1723994014186,0.25098,145.4,145.33,8.94]
[1723994014384,2.09627211,145.4,145.33,8.94]
[1723994014693,0.25098,145.39,145.33,8.94]
[1723994021098,1.97092338,145.39,145.33,8.94]
[1723994021301,0.25098,145.38,145.33,8.94]
[1723994021907,0.25098,145.38,145.31,15.5682]
[1723994022126,1.97099458,145.38,145.32,20.0]
[1723994023592,0.25098,145.38,145.32,20.0]
[1723994025289,1.9710168,145.38,145.32,20.0]
[1723994025698,0.25098,145.38,145.32,20.0]
[1723994026415,1.97102208,145.38,145.32,20.0]
[1723994027121,1.72007718,145.37,145.32,20.0]
[1723994027687,0.25098,145.38,145.32,20.0]
[1723994031119,0.25098,145.38,145.28,8.94]
[1723994031120,6.43268,145.37,145.28,8.94]
[1723994031412,0.12549,145.35,145.28,8.94]
[1723994031715,1.97142203,145.35,145.28,8.94]
[1723994032302,1.97142203,145.35,145.27,21.9552]
[1723994032499,1.97142203,145.35,145.28,8.94]
[1723994034715,0.12549,145.34,145.27,15.9498]
[1723994034910,0.12549,145.33,145.27,15.9498]
[1723994035230,0.37647,145.33,145.27,15.9498]
[1723994035405,2.0971859,145.33,145.26,8.94]
[1723994035605,0.37647,145.33,145.26,8.94]
[1723994039496,0.12549,145.32,145.26,8.94]
[1723994039724,0.37647,145.32,145.26,8.94]
[1723994040498,0.12549,145.35,145.28,8.94]
[1723994040705,7.75309398,145.34,145.28,8.94]
[1723994040899,52.75309398,145.33,145.28,8.94]
[1723994041098,1.7206111,145.34,145.28,8.94]
[1723994041815,1.72058906,145.33,145.24,15.2651]
[1723994042013,0.12549,145.32,145.26,8.94]
[1723994043434,0.25098,145.32,145.26,8.94]
[1723994043630,0.25098,145.31,145.26,8.94]
[1723994045218,0.25098,145.32,145.26,8.94]
[1723994046835,45.25098,145.33,145.27,1.09373714]
[1723994047050,45.25098,145.33,145.28,8.94]
[1723994049414,45.0,145.33,145.3,8.94]
[1723994052337,45.0,145.33,145.28,8.94]
[1723994062510,15.3728,145.36,145.32,8.94]
[1723994063121,22.6886,145.41,145.34,8.94]
[1723994063316,7.75743207,145.4,145.34,8.94]
[1723994063511,7.75743207,145.39,145.34,8.94]
[1723994063732,7.75743207,145.38,145.34,8.94]
[1723994063942,22.6886,145.41,145.34,8.94]
[1723994064237,7.7583013,145.4,145.34,8.94]
[1723994064422,53.2602613,145.39,145.34,8.94]
[1723994064732,7.7583013,145.38,145.34,8.94]
[1723994064945,45.0,145.37,145.34,8.94]
[1723994065120,45.50196,145.39,145.34,8.94]
[1723994065318,7.7585473,145.38,145.34,8.94]
[1723994065625,45.0,145.37,145.34,8.94]
[1723994065827,0.50196,145.39,145.34,8.94]
[1723994066031,7.7585473,145.38,145.34,8.94]
[1723994066346,22.6886,145.41,145.34,8.94]
[1723994066535,7.88412563,145.4,145.34,8.94]
[1723994066736,7.75880689,145.39,145.34,8.94]
[1723994067038,0.12549,145.4,145.34,8.94]
[1723994067236,7.75882301,145.39,145.34,8.94]
[1723994067437,0.12549,145.4,145.34,8.94]
[1723994067630,7.75882301,145.39,145.34,8.94]
[1723994067830,45.0,145.38,145.34,8.94]
[1723994074733,22.6886,145.41,145.34,8.94]
[1723994075046,22.6886,145.41,145.32,35.76]
[1723994075047,52.75783926,145.4,145.36,8.94]
[1723994075232,45.0,145.4,145.36,8.94]
[1723994077217,45.0,145.4,145.33,1.090988]
[1723994077218,22.4959,145.45,145.38,8.94]
[1723994077424,7.76021507,145.44,145.38,8.94]
[1723994077614,7.76021507,145.43,145.38,8.94]
[1723994077822,22.4959,145.45,145.38,8.94]
[1723994078121,7.7605462,145.44,145.38,8.94]
[1723994078321,7.7605462,145.43,145.38,8.94]
[1723994078545,0.12549,145.44,145.38,8.94]
[1723994078739,7.76071554,145.43,145.38,8.94]
[1723994078943,45.0,145.42,145.38,8.94]
[1723994079244,45.50196,145.44,145.38,8.94]
[1723994079652,7.76059676,145.43,145.38,8.94]
[1723994079827,22.4959,145.45,145.38,8.94]
[1723994080920,45.12549,145.44,145.38,8.94]
[1723994082447,45.0,145.44,145.4,8.94]
[1723994086956,0.37647,145.46,145.35,18.29985338]
[1723994086957,0.12549,145.47,145.42,8.94]
[1723994087125,45.37647,145.47,145.42,8.94]
[1723994091952,45.37647,145.47,145.4,8.94]
[1723994094171,45.0,145.47,145.42,8.94]
[1723994094333,45.0,145.47,145.4,15.8239]
[1723994094334,6.3981,145.49,145.44,8.94]
[1723994094543,16.1726,145.52,145.44,8.94]
[1723994094935,8.94,145.51,145.4,15.8239]
[1723994095144,8.94,145.51,145.42,8.94]
[1723994095645,45.50196,145.5,145.42,8.94]
[1723994098266,54.44196,145.5,145.42,8.94]
[1723994101342,45.50196,145.5,145.44,8.94]
[1723994101659,0.50196,145.5,145.44,8.94]
[1723994101842,45.0,145.49,145.44,8.94]
[1723994102044,0.50196,145.5,145.44,8.94]
[1723994115277,0.12549,145.5,145.45,1.08861261]
[1723994117664,7.0265046,145.53,145.44,24.3954]
[1723994117665,0.8729046,145.53,145.46,8.94]
[1723994117880,0.8729046,145.53,145.47,1.08759812]
[1723994118183,0.8729046,145.53,145.5,8.94]
[1723994118476,0.8729046,145.53,145.52,8.94]
[1723994118689,0.8729046,145.53,145.52,10.02627925]
[1723994119464,0.8729046,145.53,145.52,28.94]
[1723994120986,0.8729046,145.53,145.52,20.0]
[1723994121185,0.8729046,145.53,145.52,8.94]
[1723994121362,0.8729046,145.53,145.52,28.94]
[1723994124591,0.8729046,145.53,145.52,20.0]
[1723994124899,0.8729046,145.53,145.51,8.94]
[1723994125083,0.8729046,145.53,145.52,20.0]
[1723994132781,0.8729046,145.53,145.49,21.6831]
[1723994132986,0.8729046,145.53,145.51,8.94]
[1723994138972,0.8729046,145.53,145.52,8.94]
[1723994143703,0.8729046,145.53,145.52,28.94]
[1723994144917,6.0044,145.62,145.52,28.94]
[1723994145223,0.12549,145.61,145.56,8.94]
[1723994145391,45.25098,145.61,145.56,8.94]
[1723994145585,45.12549,145.61,145.56,8.94]
[1723994145785,45.0,145.61,145.56,8.94]
[1723994146391,45.0,145.61,145.57,1.08527865]
[1723994146799,6.0044,145.62,145.57,1.08527865]
[1723994147200,6.0044,145.62,145.58,8.94]
[1723994148406,6.0044,145.62,145.57,8.94]
[1723994148810,15.4327,145.63,145.57,8.94]
[1723994149107,45.0,145.62,145.57,8.94]
[1723994150493,15.4327,145.63,145.57,8.94]
[1723994150692,15.4327,145.63,145.59,8.94]
[1723994151098,6.4428,145.65,145.6,1.08423754]
[1723994151291,15.9638,145.67,145.6,1.08423754]
[1723994151792,19.51951581,145.67,145.6,1.08423754]
[1723994152012,19.51951581,145.67,145.61,8.94]
[1723994152312,15.9638,145.67,145.62,1.08334307]
[1723994153211,15.9638,145.67,145.61,8.94]
[1723994153408,7.3157046,145.68,145.61,8.94]
[1723994153593,7.3157046,145.68,145.62,1.08332151]
[1723994154801,45.0,145.67,145.62,1.08332151]
[1723994157925,45.0,145.67,145.61,8.94]
[1723994160313,45.0,145.67,145.6,15.1673]
[1723994160519,0.25098,145.66,145.6,15.1673]
[1723994162108,0.25098,145.66,145.57,15.1673]
[1723994162325,0.25098,145.66,145.59,8.94]
[1723994162529,0.25098,145.66,145.6,20.0]
[1723994162824,0.25098,145.66,145.6,21.08411978]
[1723994163011,7.3157046,145.68,145.6,20.0]
[1723994164022,7.3157046,145.68,145.61,8.94]
[1723994164713,45.0,145.67,145.61,8.94]
[1723994164924,45.8729046,145.68,145.61,8.94]
[1723994165825,0.8729046,145.68,145.61,8.94]
[1723994166024,4.42869124,145.68,145.61,8.94]
[1723994166216,45.0,145.67,145.61,8.94]
[1723994167628,45.0,145.67,145.62,1.08333291]
[1723994168632,45.0,145.67,145.6,20.0]
[1723994168806,47.58938872,145.68,145.6,20.0]
[1723994169006,0.12549,145.67,145.6,20.0]
[1723994169736,45.8729046,145.68,145.6,20.0]
[1723994169917,0.12549,145.67,145.6,20.0]
[1723994170638,0.25098,145.67,145.6,20.0]
[1723994170814,0.37647,145.67,145.6,28.94]
[1723994171009,0.25098,145.67,145.6,28.94]
[1723994171940,0.25098,145.67,145.6,20.0]
[1723994173206,0.25098,145.66,145.6,20.0]
[1723994173411,0.25098,145.65,145.57,15.1673]
[1723994173608,0.25098,145.64,145.57,15.1673]
[1723994173829,0.25098,145.63,145.57,15.1673]
[1723994174645,0.12549,145.63,145.57,15.1673]
[1723994174842,45.0,145.64,145.59,8.94]
[1723994175018,45.0,145.65,145.59,8.94]
[1723994175419,45.0,145.65,145.6,1.08396775]
[1723994175840,45.0,145.65,145.61,10.02393575]
[1723994176037,0.8729046,145.68,145.61,8.94]
[1723994177317,45.8729046,145.68,145.61,8.94]
[1723994178014,0.8729046,145.68,145.61,8.94]
[1723994180133,0.37647,145.67,145.6,6.0399]
[1723994180327,45.0,145.67,145.6,6.0399]
[1723994180533,45.0,145.67,145.61,8.94]
[1723994181646,0.8729046,145.68,145.63,8.94]
[1723994182028,0.8729046,145.68,145.64,1.08296756]
[1723994182417,0.8729046,145.68,145.65,8.94]
[1723994182726,0.8729046,145.68,145.65,10.02271986]
[1723994183241,0.8729046,145.68,145.65,8.94]
[1723994185823,0.8729046,145.68,145.63,8.94]
[1723994186023,0.8729046,145.68,145.64,20.0]
[1723994186332,4.43098418,145.68,145.64,20.0]
[1723994188525,4.43098418,145.68,145.63,28.94]
[1723994189544,4.43098418,145.68,145.65,8.94]
[1723994189729,0.8729046,145.68,145.65,8.94]
[1723994190351,4.43098418,145.68,145.65,8.94]
[1723994190536,0.8729046,145.68,145.66,1.08227819]
[1723994190721,4.43098418,145.68,145.66,1.08227819]
[1723994191051,0.8729046,145.68,145.66,1.08227819]
[1723994191240,4.43098418,145.68,145.66,1.08227819]
[1723994191431,0.8729046,145.68,145.66,1.08227819]
[1723994191632,4.43098418,145.68,145.67,10.02182125]
[1723994191831,0.8729046,145.68,145.67,44.9848]
[1723994192044,4.43098418,145.68,145.67,46.06622752]
[1723994192260,4.43098418,145.68,145.67,44.9848]
[1723994192627,4.43098418,145.68,145.67,46.0661471]
[1723994192827,4.43098418,145.68,145.67,44.9848]
[1723994193028,4.43098418,145.68,145.67,36.0448]
[1723994193228,4.43098418,145.68,145.67,44.9848]
[1723994193229,4.43129314,145.68,145.67,44.9848]
[1723994195547,4.43129314,145.68,145.67,20.0]
[1723994195743,4.43129314,145.68,145.66,20.0]
[1723994195952,3.55838854,145.67,145.66,20.0]
[1723994196462,0.8729046,145.68,145.64,8.94]
[1723994196833,0.8729046,145.68,145.63,15.6525]
[1723994197039,0.8729046,145.68,145.63,24.5925]
[1723994197651,0.8729046,145.68,145.65,8.94]
[1723994197859,0.8729046,145.68,145.64,20.0]
[1723994198231,0.8729046,145.68,145.6,20.0]
[1723994198436,0.8729046,145.68,145.6,28.94]
[1723994200358,2.58934276,145.68,145.6,28.94]
[1723994200735,0.8729046,145.68,145.6,8.94]
[1723994200931,0.12549,145.67,145.6,8.94]
[1723994201438,21.86029,145.67,145.6,8.94]
[1723994201759,46.96762499,145.66,145.55,15.6525]
[1723994201951,0.12549,145.65,145.57,8.94]
[1723994203344,0.12549,145.65,145.58,20.0]
[1723994204036,9.19098,145.65,145.58,20.0]
[1723994204232,45.25098,145.64,145.56,28.94]
[1723994204439,0.25098,145.63,145.56,28.94]
[1723994204927,0.25098,145.63,145.56,8.94]
[1723994205349,0.12549,145.63,145.56,8.94]
[1723994206462,0.12549,145.63,145.57,20.0]
[1723994206840,0.12549,145.63,145.56,8.94]
[1723994207041,0.12549,145.61,145.51,22.14160633]
[1723994207361,45.50196,145.61,145.53,8.94]
[1723994208249,45.50196,145.61,145.54,20.0]
[1723994209441,45.50196,145.61,145.51,15.6525]
[1723994209641,45.50196,145.61,145.53,8.94]
[1723994209966,45.50196,145.61,145.51,15.6525]
[1723994210169,45.50196,145.61,145.53,8.94]
[1723994212360,46.69976832,145.61,145.53,8.94]
[1723994212867,46.69976832,145.61,145.55,8.94]
[1723994213075,46.19780832,145.61,145.55,8.94]
[1723994213962,45.0,145.61,145.55,8.94]
[1723994214783,15.2895,145.62,145.59,8.94]
[1723994215068,6.4648,145.65,145.6,1.08419483]
[1723994215267,6.4648,145.65,145.61,8.94]
[1723994217471,16.0156,145.66,145.61,8.94]
[1723994219669,1.71659377,145.65,145.61,8.94]
[1723994219848,46.71659377,145.65,145.61,8.94]
[1723994220175,45.0,145.65,145.61,8.94]
[1723994220354,45.0,145.65,145.58,8.94]
[1723994220554,45.0,145.65,145.57,15.1644]
[1723994220555,45.0,145.65,145.6,8.94]
[1723994221679,16.0156,145.66,145.62,8.94]
[1723994223298,16.0156,145.66,145.61,8.94]
[1723994223462,0.8729046,145.68,145.61,8.94]
[1723994223793,0.12549,145.67,145.61,8.94]
[1723994224319,0.12549,145.67,145.58,0.12549]
[1723994224320,45.8729046,145.68,145.63,8.94]
[1723994224491,45.8729046,145.68,145.62,22.21]
[1723994224988,45.8729046,145.68,145.63,1.08299895]
[1723994225196,0.8729046,145.68,145.64,22.21]
[1723994226567,0.8729046,145.68,145.65,20.0]
[1723994227757,0.8729046,145.68,145.62,22.21]
[1723994227964,45.8729046,145.68,145.6,22.21]
[1723994228178,45.8729046,145.68,145.61,20.0]
[1723994228886,45.8729046,145.68,145.6,22.21]
[1723994229194,45.8729046,145.68,145.61,1.08374693]
[1723994229370,45.8729046,145.68,145.6,22.21]
[1723994233188,45.8729046,145.68,145.61,20.0]
[1723994233391,45.8729046,145.68,145.62,23.29322374]
[1723994233693,0.8729046,145.68,145.63,20.0]
[1723994233998,0.8729046,145.68,145.64,23.2928449]